[Event "DVM U14w 2019"]
[Site "Neumuenster"]
[Date "2019.12.29"]
[Round "6"]
[White "Boutayeb, Malak"]
[Black "Rosin, Ida"]
[Result "0-1"]
[ECO "C50"]
[WhiteElo "800"]
[BlackElo "1389"]
[Annotator "NA"]
[PlyCount "82"]
[EventDate "2019.12.27"]
[EventType "team-tourn"]
[EventRounds "7"]
[EventCountry "GER"]
[SourceTitle "playchess.com"]
[Source "ChessBase"]
[SourceQuality "1"]
[WhiteTeam "VSG 1880 Offenbach"]
[BlackTeam "Lübecker SV"]
[BlackTeamCountry "GER"]
[TimeControl "40/5400+30:1800+30"]

1. e4 {[%emt 0:00:00]} e5 {[%emt 0:00:26]} 2. Nf3 {[%emt 0:00:09]} Nc6 {[%emt 0:01:06]} 3. Bc4 {[%emt 0:00:17]} Bc5 {[%emt 0:01:01]} 4. d3 {[%emt 0:01:07]} h6 {[%emt 0:02:34]} 5. Nc3 d6 {[%emt 0:02:56]} 6. h3 {[%emt 0:01:50]} Be6 {[%emt 0:02:31]} 7. Be3 {[%emt 0:01:57]} Bb6 {[%emt 0:02:32]} 8. Qd2 {[%emt 0:01:30]} Nf6 {[%emt 0:02:26]} 9. Bxe6 {[%emt 0:07:44]} fxe6 {[%emt 0:02:32]} 10. Bxb6 {[%emt 0:04:45]} axb6 {[%emt 0:02:38]} 11. Qe3 {[%emt 0:04:21]} O-O {[%emt 0:02:30]} 12. Qd2 {[%emt 0:05:39]} d5 {[%emt 0:03:21]} 13. d4 {[%emt 0:07:54]} exd4 {[%emt 0:04:30]} 14. Nxd4 {[%emt 0:01:12]} Nxe4 {[%emt 0:02:36]} 15. Nxe4 {[%emt 0:00:38]} dxe4 {[%emt 0:00:37]} 16. O-O-O {[%emt 0:03:31]} Nxd4 {[%emt 0:03:18]} 17. Qxd4 {[%emt 0:00:47]} Qxd4 {[%emt 0:02:30]} 18. Rxd4 {[%emt 0:00:21]} Rxa2 {[%emt 0:02:46]} 19. Kb1 {[%emt 0:02:42]} Rfa8 {[%emt 0:01:33]} 20. Kc1 {[%emt 0:01:57]} Ra1+ {[%emt 0:00:35]} 21. Kd2 {[%emt 0:02:55]} Rxh1 {[%emt 0:00:34]} 22. Rxe4 {[%emt 0:04:51]} Rd8+ {[%emt 0:00:29]} 23. Ke3 {[%emt 0:00:27]} Re1+ {[%emt 0:00:28]} 24. Kf3 {[%emt 0:00:25]} Rxe4 {[%emt 0:00:11]} 25. Kxe4 {[%emt 0:00:29]} Rd2 {[%emt 0:02:03]} 26. f4 {[%emt 0:01:29]} Rxc2 {[%emt 0:00:15]} 27. Ke5 {[%emt 0:00:12]} Kf7 {[%emt 0:00:29]} 28. g4 {[%emt 0:00:31]} Rxb2 {[%emt 0:00:13]} 29. h4 {[%emt 0:00:23]} Rb5+ {[%emt 0:00:41]} 30. Ke4 {[%emt 0:01:08]} Ra5 {[%emt 0:00:14]} 31. f5 {[%emt 0:00:24]} exf5+ {[%emt 0:00:42]} 32. gxf5 {[%emt 0:00:55]} Ra4+ {[%emt 0:00:17]} 33. Ke5 {[%emt 0:00:46]} Rxh4 {[%emt 0:00:10]} 34. f6 {[%emt 0:00:41]} gxf6+ {[%emt 0:00:14]} 35. Kd5 {[%emt 0:00:33]} b5 {[%emt 0:00:14]} 36. Kc5 {[%emt 0:00:32]} b4 {[%emt 0:00:13]} 37. Kb5 {[%emt 0:00:35]} b3 {[%emt 0:00:16]} 38. Ka5 {[%emt 0:00:14]} b2 {[%emt 0:00:18]} 39. Kb5 {[%emt 0:00:28]} b1=Q+ {[%emt 0:00:21]} 40. Ka5 {[%emt 0:00:09]} Rh2 {[%emt 0:00:48]} 41. Ka4 {[%emt 0:30:17]} Ra2# {[%emt 0:31:48] normal} 0-1

[Event "DVM U14w 2019"]
[Site "Neumuenster"]
[Date "2019.12.30"]
[Round "7"]
[White "Zhou, Lepu Coco"]
[Black "Mai, Mariella"]
[Result "1-0"]
[ECO "C10"]
[WhiteElo "1892"]
[BlackElo "1232"]
[Annotator "NA"]
[PlyCount "112"]
[EventDate "2019.12.27"]
[EventType "team-tourn"]
[EventRounds "7"]
[EventCountry "GER"]
[SourceTitle "playchess.com"]
[Source "ChessBase"]
[SourceQuality "1"]
[WhiteTeam "USV Halle"]
[BlackTeam "SV Traktor Priestewitz"]
[WhiteTeamCountry "GER"]
[TimeControl "40/5400+30:1800+30"]

1. e4 {[%emt 0:00:00]} e6 {[%emt 0:00:00]} 2. d4 {[%emt 0:00:00]} d5 {[%emt 0:00:00]} 3. Nc3 {[%emt 0:00:00]} c5 {[%emt 0:00:36]} 4. Nf3 {[%emt 0:03:13]} Nc6 {[%emt 0:00:16]} 5. Be3 {[%emt 0:02:26]} b6 {[%emt 0:01:38]} 6. Bb5 {[%emt 0:01:12] C10: French with 3 Nc3: Unusual Black 3rd moves and 3...dxe4} (6. Be2 Bb7 7. Qd2 Bd6 8. O-O-O Nge7 9. Ne1 O-O 10. Nd3 cxd4 11. Bf4 dxc3 12. Qxc3 Bxf4+ 13. Nxf4 {0-1 (32) Stoica Visan,N (1001)-Moisei,D (1050) Calimanesti Caciulata 2019}) 6... Bd7 {[%emt 0:01:06]} 7. exd5 $146 {[%emt 0:00:55]} ({Predecessor:} 7. Qe2 a6 8. Bxc6 Bxc6 9. Ne5 Bd7 10. O-O-O Bd6 11. Nxd7 Qxd7 12. e5 Be7 13. Qg4 {1-0 (35) Granovskaya,E-Liplianskiy,I Varna 2011}) 7... exd5 {[%emt 0:00:42]} 8. Nxd5 {[%emt 0:00:26] unterminated} Nf6 {[%emt 0:06:34] unterminated} 9. Bg5 {[%emt 0:02:18] unterminated} Be7 {[%emt 0:01:54] unterminated} 10. Qe2 {[%emt 0:02:16] unterminated} Nxd5 {[%emt 0:00:44] unterminated} 11. Bxc6 {[%emt 0:01:05]} Bxc6 {[%emt 0:00:40]} 12. Ne5 {[%emt 0:00:11] unterminated} Bb7 {[%emt 0:00:58]} 13. Qf3 {[%emt 0:01:37] unterminated} O-O {[%emt 0:01:29] unterminated} 14. Bd2 {[%emt 0:01:12] unterminated} Rb8 {[%emt 0:02:09]} 15. Qg3 {[%emt 0:01:11] unterminated} Bh4 {[%emt 0:00:41] unterminated} 16. Qg4 {[%emt 0:01:33] unterminated} Bc8 {[%emt 0:03:30]} 17. Qh5 {[%emt 0:01:08] unterminated} cxd4 {[%emt 0:02:37]} 18. O-O-O {[%emt 0:00:46] unterminated} Bb7 {[%emt 0:03:48] unterminated} 19. Qg4 {[%emt 0:02:51] unterminated} Bc8 {[%emt 0:00:52] unterminated} 20. Qxd4 {[%emt 0:02:59] unterminated} Bf5 {[%emt 0:04:19] unterminated} 21. c3 {[%emt 0:02:52] unterminated} Nc7 {[%emt 0:03:00]} 22. Qf4 {[%emt 0:01:07] unterminated} Be6 {[%emt 0:02:23] unterminated} 23. Nc6 {[%emt 0:00:17] unterminated} Nd5 {[%emt 0:02:07] unterminated} 24. Qe4 {[%emt 0:02:04] unterminated} Qf6 {[%emt 0:05:00]} 25. Nxb8 {[%emt 0:01:04] unterminated} Rxb8 {[%emt 0:00:42]} 26. f4 {[%emt 0:00:39] unterminated} (26. g3 $17 {was necessary.} Bg5 27. Bxg5 Qxg5+ 28. f4) 26... Qf5 {[%emt 0:03:48] unterminated} 27. Qa4 $2 {[%emt 0:02:19] unterminated} (27. Qxf5 Bxf5 28. Be1 Bxe1 29. Rxd5) 27... Rc8 {[%emt 0:02:21] unterminated} 28. g3 {[%emt 0:04:12] unterminated} Be7 {[%emt 0:01:54]} 29. Rhe1 {[%emt 0:01:18] unterminated} f6 $2 {[%emt 0:03:03] unterminated} (29... Nb4 30. g4 Qxg4) 30. a3 {[%emt 0:03:58]} a5 {[%emt 0:00:23] unterminated} 31. Re4 {[%emt 0:04:18] unterminated [#] unterminated} b5 $19 {[%emt 0:01:19]} (31... Nb4 $142 $1 {[%mdl 512]} 32. axb4 Qxe4) 32. Qc2 $2 {[%emt 0:00:14] [#]} (32. g4 Qxg4 33. Qxb5) 32... b4 $1 {[%emt 0:00:33] unterminated} 33. Rde1 {[%emt 0:01:28]} (33. Rd4 $142 Qxc2+ 34. Kxc2) 33... Rc6 {[%emt 0:04:10]} 34. Rxe6 {[%emt 0:00:45]} Qxc2+ {[%emt 0:01:10]} 35. Kxc2 {[%emt 0:00:09]} Rc7 {[%emt 0:00:29]} 36. axb4 {[%emt 0:01:18]} axb4 {[%emt 0:01:09]} 37. Kd3 {[%emt 0:02:33]} Kf7 {[%emt 0:00:34]} 38. c4 {[%emt 0:00:26]} Rd7 {[%emt 0:02:07]} 39. cxd5 {[%emt 0:00:37]} Rxd5+ {[%emt 0:00:17]} 40. Kc2 {[%emt 0:00:16]} Bc5 {[%emt 0:03:19]} 41. Rc6 {[%emt 0:31:26]} Kg6 {[%emt 0:31:45]} 42. Be3 {[%emt 0:00:56]} b3+ {[%emt 0:02:13]} 43. Kc3 {[%emt 0:00:18]} Bxe3 {[%emt 0:00:32]} 44. Rxe3 {[%emt 0:00:09]} Rd1 {[%emt 0:00:11]} 45. Kxb3 {[%emt 0:00:32]} Rd2 {[%emt 0:00:20]} 46. h3 {[%emt 0:00:30]} h5 {[%emt 0:00:35]} 47. Rc7 {[%emt 0:00:29]} Rg2 {[%emt 0:00:53]} 48. Rc2 {[%emt 0:01:20]} Rg1 {[%emt 0:00:15]} 49. Kc4 {[%emt 0:00:42]} Rd1 {[%emt 0:00:25]} 50. b4 {[%emt 0:00:26]} Rd8 {[%emt 0:00:13]} 51. Rb2 {[%emt 0:00:16]} Kf5 {[%emt 0:00:38]} 52. b5 {[%emt 0:01:00]} g5 {[%emt 0:00:12]} 53. fxg5 {[%emt 0:00:10]} fxg5 {[%emt 0:00:12]} 54. b6 {[%emt 0:00:11]} Rc8+ {[%emt 0:00:28]} 55. Kb5 {[%emt 0:00:19]} Rd8 {[%emt 0:00:47]} 56. b7 {[%emt 0:00:15]} Rh8 {normal} 1-0

[Event "DVM U14w 2019"]
[Site "Neumuenster"]
[Date "2019.12.30"]
[Round "7"]
[White "Werner, Rosalie"]
[Black "Reuter, Elisa"]
[Result "1/2-1/2"]
[ECO "B33"]
[WhiteElo "1674"]
[BlackElo "1850"]
[Annotator "NA"]
[PlyCount "83"]
[EventDate "2019.12.27"]
[EventType "team-tourn"]
[EventRounds "7"]
[EventCountry "GER"]
[SourceTitle "playchess.com"]
[Source "ChessBase"]
[SourceQuality "1"]
[WhiteTeam "VSG 1880 Offenbach"]
[BlackTeam "SG Leipzig"]
[WhiteTeamCountry "GER"]
[BlackTeamCountry "GER"]
[TimeControl "40/5400+30:1800+30"]

1. e4 {[%emt 0:00:00]} c5 {[%emt 0:00:00]} 2. Nf3 {[%emt 0:00:00]} Nc6 {[%emt 0:00:00]} 3. d4 {[%emt 0:00:00]} cxd4 {[%emt 0:00:00]} 4. Nxd4 {[%emt 0:00:00]} Nf6 {[%emt 0:00:00]} 5. Nc3 {[%emt 0:00:00]} e5 {[%emt 0:00:00]} 6. Ndb5 {[%emt 0:00:02]} d6 {[%emt 0:00:00]} 7. Bg5 {[%emt 0:00:06]} a6 {[%emt 0:00:00]} 8. Na3 {[%emt 0:00:04]} b5 {[%emt 0:00:00]} 9. Nd5 {[%emt 0:00:06]} Be7 {[%emt 0:00:01]} 10. Bxf6 {[%emt 0:00:07]} Bxf6 {[%emt 0:00:04]} 11. c3 {[%emt 0:00:07]} Bg5 {[%emt 0:00:51] unterminated} 12. Be2 {[%emt 0:00:53]} O-O {[%emt 0:00:09]} 13. O-O {[%emt 0:00:06]} Be6 $11 {[%emt 0:02:52]} 14. Nc2 {[%emt 0:02:56]} f5 {[%emt 0:02:28]} 15. Bf3 {[%emt 0:02:39]} f4 {[%emt 0:00:55]} 16. a4 {[%emt 0:01:05]} bxa4 {[%emt 0:00:51]} 17. Rxa4 {[%emt 0:00:59]} Ne7 {[%emt 0:06:18]} 18. Ncb4 {[%emt 0:04:16]} a5 {[%emt 0:03:46]} 19. Nxe7+ {[%emt 0:04:56]} Qxe7 {[%emt 0:00:25]} 20. Nd5 {[%emt 0:00:40]} Qb7 {[%emt 0:01:20]} 21. Qc2 {[%emt 0:09:40]} Rfc8 {[%emt 0:02:45]} 22. Rd1 {[%emt 0:10:00]} Bd8 {[%emt 0:03:39]} 23. h3 {[%emt 0:05:02]} Rab8 {[%emt 0:02:40]} 24. Rd2 {[%emt 0:04:09]} Rc5 {[%emt 0:03:00]} 25. b4 {[%emt 0:20:13]} axb4 {[%emt 0:03:48]} 26. Rxb4 {[%emt 0:00:33]} Qa8 {[%emt 0:03:00]} 27. Qb2 {[%emt 0:06:53]} Rxb4 {[%emt 0:08:56]} 28. cxb4 {[%emt 0:04:09]} Rc8 {[%emt 0:00:30]} 29. Rd1 {[%emt 0:07:42]} Qb7 {[%emt 0:01:34]} 30. Rb1 {[%emt 0:03:56]} Bxd5 {[%emt 0:01:15]} 31. exd5 {[%emt 0:00:11]} Bb6 {[%emt 0:00:33]} 32. Rc1 {[%emt 0:02:55]} Rxc1+ {[%emt 0:00:09]} 33. Qxc1 {[%emt 0:00:05]} Qc7 {[%emt 0:00:21]} 34. Qxc7 {[%emt 0:07:31]} Bxc7 {[%emt 0:00:04]} 35. Be4 {[%emt 0:00:08]} h6 {[%emt 0:00:13]} 36. Bg6 {[%emt 0:02:43]} Bb6 {[%emt 0:00:19]} 37. Kf1 {[%emt 0:00:47]} Kf8 {[%emt 0:00:13]} 38. Ke2 {[%emt 0:01:22]} Ke7 {[%emt 0:00:05]} 39. Kf3 {[%emt 0:01:28]} Bd4 {[%emt 0:01:15]} 40. Ke2 {[%emt 0:00:53]} Bb6 {[%emt 0:00:13]} 41. Kf3 {[%emt 0:30:08]} Bd4 {[%emt 0:30:05]} 42. Ke2 {[%emt 0:00:07] normal} 1/2-1/2

[Event "DVM U14w 2019"]
[Site "Neumuenster"]
[Date "2019.12.30"]
[Round "7"]
[White "Oswald, Hannah"]
[Black "Buchholz, Maja"]
[Result "1-0"]
[ECO "C06"]
[WhiteElo "1647"]
[BlackElo "1666"]
[Annotator "NA"]
[PlyCount "133"]
[EventDate "2019.12.27"]
[EventType "team-tourn"]
[EventRounds "7"]
[EventCountry "GER"]
[SourceTitle "playchess.com"]
[Source "ChessBase"]
[SourceQuality "1"]
[WhiteTeam "SG Leipzig"]
[BlackTeam "VSG 1880 Offenbach"]
[WhiteTeamCountry "GER"]
[BlackTeamCountry "GER"]
[TimeControl "40/5400+30:1800+30"]

1. e4 {[%emt 0:00:00]} e6 {[%emt 0:00:00]} 2. d4 {[%emt 0:00:00]} d5 {[%emt 0:00:00]} 3. Nd2 {[%emt 0:00:00]} Nf6 {[%emt 0:00:00]} 4. e5 {[%emt 0:00:00]} Nfd7 {[%emt 0:00:00]} 5. Bd3 {[%emt 0:00:00]} c5 {[%emt 0:00:00]} 6. c3 {[%emt 0:00:04]} Nc6 {[%emt 0:00:11]} 7. Ne2 {[%emt 0:00:12]} cxd4 {[%emt 0:00:15]} 8. cxd4 {[%emt 0:00:08]} f6 {[%emt 0:00:10]} 9. exf6 {[%emt 0:00:06]} Nxf6 {[%emt 0:00:06]} 10. O-O {[%emt 0:00:32]} Bd6 {[%emt 0:00:09]} 11. Nf3 {[%emt 0:00:38]} Qc7 {[%emt 0:00:13]} 12. Bg5 {[%emt 0:01:24]} O-O {[%emt 0:00:20]} 13. Bh4 {[%emt 0:00:49]} Nh5 {[%emt 0:01:11]} 14. Qc2 {[%emt 0:01:06]} h6 {[%emt 0:02:31]} 15. Bh7+ {[%emt 0:03:08]} Kh8 {[%emt 0:00:16]} 16. Bg6 {[%emt 0:00:48]} Nf6 {[%emt 0:02:17]} 17. Bg3 {[%emt 0:01:17]} Bd7 {[%emt 0:01:04]} 18. Rac1 {[%emt 0:04:27]} Rac8 {[%emt 0:01:53]} 19. Qb1 {[%emt 0:14:58]} Qb8 {[%emt 0:03:37]} 20. Rfe1 {[%emt 0:05:39]} e5 {[%emt 0:05:26]} 21. dxe5 {[%emt 0:01:47]} Nxe5 {[%emt 0:00:23]} 22. Nxe5 {[%emt 0:03:27]} Bxe5 {[%emt 0:00:32]} 23. Bxe5 {[%emt 0:02:48]} Qxe5 {[%emt 0:00:11]} 24. Nc3 {[%emt 0:01:19]} Qd6 {[%emt 0:02:09]} 25. h3 {[%emt 0:04:15]} Qb6 {[%emt 0:08:16]} 26. Rcd1 {[%emt 0:12:09]} Rc7 {[%emt 0:02:53]} 27. Re2 {[%emt 0:13:44]} Bc6 {[%emt 0:01:28]} 28. Qd3 {[%emt 0:03:56]} Rd7 {[%emt 0:03:00]} 29. Qd4 {[%emt 0:01:36]} Qa6 {[%emt 0:02:42]} 30. Bd3 {[%emt 0:01:32]} Qb6 {[%emt 0:04:41]} 31. Qxb6 {[%emt 0:00:14]} axb6 {[%emt 0:00:05]} 32. Red2 {[%emt 0:02:08]} Ra8 {[%emt 0:02:30]} 33. Bf5 {[%emt 0:05:29]} Rd6 {[%emt 0:00:28]} 34. Be4 {[%emt 0:06:54]} Nxe4 {[%emt 0:01:48]} 35. Nxe4 {[%emt 0:00:06]} Rd7 {[%emt 0:00:12]} 36. Nc3 {[%emt 0:00:37]} Rad8 {[%emt 0:01:03]} 37. Rd4 {[%emt 0:01:18]} Kg8 {[%emt 0:02:27]} 38. a4 {[%emt 0:01:12]} Kf7 {[%emt 0:06:28]} 39. b4 {[%emt 0:01:08]} Rc7 {[%emt 0:03:50]} 40. b5 {[%emt 0:03:05]} Be8 {[%emt 0:01:38]} 41. Nxd5 {[%emt 0:30:46]} Rcd7 {[%emt 0:31:33]} 42. R4d3 {[%emt 0:00:41]} g5 {[%emt 0:00:50]} 43. Kh2 {[%emt 0:04:26]} Kf8 {[%emt 0:02:54]} 44. Nb4 {[%emt 0:00:58]} Rxd3 {[%emt 0:00:36]} 45. Rxd3 {[%emt 0:00:24]} Rxd3 {[%emt 0:00:15]} 46. Nxd3 {[%emt 0:00:06]} Ke7 {[%emt 0:00:19]} 47. Kg3 {[%emt 0:01:17]} Kd6 {[%emt 0:00:38]} 48. h4 {[%emt 0:00:00]} Bg6 {[%emt 0:00:00]} 49. hxg5 {[%emt 0:00:00]} Bxd3 {[%emt 0:00:00]} 50. gxh6 {[%emt 0:00:00]} Ke6 {[%emt 0:00:00]} 51. Kh4 {[%emt 0:00:00]} Kf6 {[%emt 0:00:00]} 52. g4 {[%emt 0:00:00]} Kg6 {[%emt 0:00:00]} 53. g5 {[%emt 0:00:00]} Bc2 {[%emt 0:00:00]} 54. f4 {[%emt 0:00:00]} Bxa4 {[%emt 0:00:00]} 55. f5+ {[%emt 0:00:00]} Kh7 {[%emt 0:00:00]} 56. Kh5 {[%emt 0:00:00]} Bd1+ {[%emt 0:00:00]} 57. Kh4 {[%emt 0:00:00]} Be2 {[%emt 0:00:00]} 58. f6 {[%emt 0:00:00]} Kg6 {[%emt 0:00:00]} 59. Kg3 {[%emt 0:00:00]} Bxb5 {[%emt 0:00:00]} 60. Kf4 {[%emt 0:00:00]} Bc4 {[%emt 0:00:00]} 61. Ke4 {[%emt 0:00:00]} b5 {[%emt 0:00:00]} 62. Kd4 {[%emt 0:00:00]} b6 {[%emt 0:00:00]} 63. Kc3 {[%emt 0:00:00]} Kh7 {[%emt 0:00:00]} 64. Kb4 {[%emt 0:00:00]} Kg8 {[%emt 0:00:00]} 65. g6 {[%emt 0:00:00]} Bd3 {[%emt 0:00:00]} 66. f7+ {[%emt 0:00:00]} Kf8 {[%emt 0:00:00]} 67. h7 {[%emt 0:00:00] normal} 1-0

[Event "DVM U14w 2019"]
[Site "Neumuenster"]
[Date "2019.12.30"]
[Round "7"]
[White "Becker, Linda"]
[Black "Schulz, Hannah"]
[Result "1/2-1/2"]
[ECO "B13"]
[WhiteElo "1617"]
[BlackElo "1588"]
[Annotator "NA"]
[PlyCount "41"]
[EventDate "2019.12.27"]
[EventType "team-tourn"]
[EventRounds "7"]
[EventCountry "GER"]
[SourceTitle "playchess.com"]
[Source "ChessBase"]
[SourceQuality "1"]
[WhiteTeam "SG Porz"]
[BlackTeam "Karlsruher SF"]
[WhiteTeamCountry "GER"]
[BlackTeamCountry "GER"]
[TimeControl "40/5400+30:1800+30"]

1. e4 {[%emt 0:00:00]} c6 {[%emt 0:00:00]} 2. d4 {[%emt 0:00:00]} d5 {[%emt 0:00:00]} 3. exd5 {[%emt 0:00:00]} cxd5 {[%emt 0:00:00]} 4. Nf3 {[%emt 0:00:04]} Nc6 {[%emt 0:00:01]} 5. Bd3 {[%emt 0:01:08]} g6 {[%emt 0:00:07]} 6. Bf4 {[%emt 0:01:02]} Bg7 {[%emt 0:00:15]} 7. c3 {[%emt 0:00:50]} Nf6 {[%emt 0:00:09]} 8. h3 {[%emt 0:00:35]} O-O {[%emt 0:00:33]} 9. O-O {[%emt 0:00:14]} Bf5 {[%emt 0:00:24]} 10. Bxf5 {[%emt 0:08:30]} gxf5 {[%emt 0:00:23]} 11. Nbd2 {[%emt 0:00:28]} e6 {[%emt 0:00:23]} 12. Re1 {[%emt 0:01:55]} Ne4 {[%emt 0:03:35]} 13. Rc1 {[%emt 0:02:48]} Nxd2 {[%emt 0:03:06]} 14. Qxd2 {[%emt 0:00:23]} b5 {[%emt 0:00:21]} 15. Ne5 {[%emt 0:04:13]} Nxe5 {[%emt 0:00:21]} 16. Bxe5 {[%emt 0:00:36]} Bxe5 {[%emt 0:00:16]} 17. Rxe5 {[%emt 0:00:17]} Kh8 {[%emt 0:00:15]} 18. Qf4 {[%emt 0:00:58]} Rg8 {[%emt 0:01:44]} 19. Re3 {[%emt 0:03:17]} Qf6 {[%emt 0:02:41]} 20. Qe5 {[%emt 0:01:59]} Qxe5 {[%emt 0:00:43]} 21. Rxe5 {[%emt 0:00:12] normal} 1/2-1/2

[Event "DVM U14w 2019"]
[Site "Neumuenster"]
[Date "2019.12.30"]
[Round "7"]
[White "Roncea, Andrea-Alexandra"]
[Black "Berghold, Lotta"]
[Result "1/2-1/2"]
[ECO "B00"]
[WhiteElo "1591"]
[BlackElo "1398"]
[Annotator "NA"]
[PlyCount "43"]
[EventDate "2019.12.27"]
[EventType "team-tourn"]
[EventRounds "7"]
[EventCountry "GER"]
[SourceTitle "playchess.com"]
[Source "ChessBase"]
[SourceQuality "1"]
[WhiteTeam "SC Papenburg"]
[BlackTeam "SC Borussia Lichtenberg"]
[WhiteTeamCountry "GER"]
[BlackTeamCountry "GER"]
[TimeControl "40/5400+30:1800+30"]

1. e4 {[%emt 0:00:00]} d6 {[%emt 0:00:00]} 2. d4 {[%emt 0:00:00]} Nf6 {[%emt 0:00:05]} 3. Bd3 {[%emt 0:00:01]} g6 {[%emt 0:01:11]} 4. Nf3 {[%emt 0:01:08]} Bg7 {[%emt 0:00:17]} 5. O-O {[%emt 0:04:33]} O-O {[%emt 0:00:29]} 6. c3 {[%emt 0:00:47]} Nbd7 {[%emt 0:01:14]} 7. Qe2 {[%emt 0:03:40]} e5 {[%emt 0:04:54]} 8. dxe5 {[%emt 0:04:29]} dxe5 {[%emt 0:03:44]} 9. Rd1 {[%emt 0:04:42]} Qe7 {[%emt 0:01:00]} 10. h3 {[%emt 0:14:05]} b6 {[%emt 0:01:45]} 11. Bg5 {[%emt 0:07:02]} Bb7 {[%emt 0:04:19]} 12. Nbd2 {[%emt 0:08:17]} h6 {[%emt 0:06:30]} 13. Bh4 {[%emt 0:02:14]} Nc5 {[%emt 0:12:49]} 14. Bc2 {[%emt 0:01:29]} Rfe8 {[%emt 0:09:47]} 15. b4 {[%emt 0:09:24]} Ne6 {[%emt 0:05:47]} 16. Bxf6 {[%emt 0:07:25]} Bxf6 {[%emt 0:00:36]} 17. g3 {[%emt 0:00:44]} Red8 {[%emt 0:05:56]} 18. Nc4 {[%emt 0:04:48]} Ng5 {[%emt 0:00:55]} 19. Nxg5 {[%emt 0:03:26]} Bxg5 {[%emt 0:00:11]} 20. h4 {[%emt 0:04:36]} Bf6 {[%emt 0:00:36]} 21. Rxd8+ {[%emt 0:00:13]} Rxd8 {[%emt 0:00:09]} 22. Rd1 {[%emt 0:00:57] normal} 1/2-1/2

[Event "DVM U14w 2019"]
[Site "Neumuenster"]
[Date "2019.12.30"]
[Round "7"]
[White "Evering, Enna"]
[Black "Kluehs, Isabel"]
[Result "1-0"]
[ECO "B33"]
[WhiteElo "1556"]
[BlackElo "1363"]
[Annotator "NA"]
[PlyCount "113"]
[EventDate "2019.12.27"]
[EventType "team-tourn"]
[EventRounds "7"]
[EventCountry "GER"]
[SourceTitle "playchess.com"]
[Source "ChessBase"]
[SourceQuality "1"]
[WhiteTeam "SC Papenburg"]
[BlackTeam "SC Borussia Lichtenberg"]
[WhiteTeamCountry "GER"]
[BlackTeamCountry "GER"]
[TimeControl "40/5400+30:1800+30"]

1. e4 {[%emt 0:00:00]} c5 {[%emt 0:00:00]} 2. Nf3 {[%emt 0:00:00]} Nc6 {[%emt 0:00:00]} 3. d4 {[%emt 0:00:00]} cxd4 {[%emt 0:00:00]} 4. Nxd4 {[%emt 0:00:15]} Nf6 {[%emt 0:00:04]} 5. Nc3 {[%emt 0:00:27]} e5 {[%emt 0:00:16]} 6. Ndb5 {[%emt 0:00:52]} d6 {[%emt 0:00:18]} 7. Bg5 {[%emt 0:01:22]} a6 {[%emt 0:01:27]} 8. Na3 {[%emt 0:00:25]} b5 {[%emt 0:00:50]} 9. Nd5 {[%emt 0:01:41]} Be7 {[%emt 0:00:27]} 10. Bxf6 {[%emt 0:00:39]} Bxf6 {[%emt 0:00:08]} 11. c4 {[%emt 0:02:20]} b4 {[%emt 0:02:28]} 12. Nc2 {[%emt 0:01:18]} a5 {[%emt 0:00:15]} 13. Qf3 {[%emt 0:02:05]} Be7 {[%emt 0:01:14]} 14. a3 {[%emt 0:02:08]} bxa3 {[%emt 0:01:12]} 15. Qxa3 {[%emt 0:00:27]} O-O {[%emt 0:00:55]} 16. Be2 {[%emt 0:11:11]} f5 {[%emt 0:05:55]} 17. exf5 {[%emt 0:09:26]} Bxf5 {[%emt 0:00:25]} 18. Nce3 {[%emt 0:03:48]} Be4 {[%emt 0:01:17]} 19. Bd3 {[%emt 0:17:39]} Bxd3 {[%emt 0:02:10]} 20. Nxe7+ {[%emt 0:04:02]} Qxe7 {[%emt 0:00:59]} 21. Qxd3 {[%emt 0:00:46]} Nb4 {[%emt 0:00:51]} 22. Qd2 {[%emt 0:02:48]} Qc7 {[%emt 0:02:06]} 23. b3 {[%emt 0:05:17]} Rad8 {[%emt 0:01:52]} 24. O-O {[%emt 0:02:28]} Rf7 {[%emt 0:00:41]} 25. Nd5 {[%emt 0:01:46]} Qc5 {[%emt 0:02:14]} 26. Nxb4 {[%emt 0:01:27]} axb4 {[%emt 0:01:23]} 27. Ra4 {[%emt 0:04:59]} Rb7 {[%emt 0:00:24]} 28. Rd1 {[%emt 0:02:19]} Kh8 {[%emt 0:01:15]} 29. Qxd6 {[%emt 0:07:58]} Qxd6 {[%emt 0:01:35]} 30. Rxd6 {[%emt 0:00:10]} Rbb8 {[%emt 0:00:10]} 31. Rxd8+ {[%emt 0:00:59]} Rxd8 {[%emt 0:00:06]} 32. g3 {[%emt 0:00:39]} Rb8 {[%emt 0:00:24]} 33. Ra5 {[%emt 0:00:13]} Kg8 {[%emt 0:01:46]} 34. Rxe5 {[%emt 0:00:13]} Kf7 {[%emt 0:00:18]} 35. Kf1 {[%emt 0:01:44]} Rb7 {[%emt 0:00:18]} 36. Rb5 {[%emt 0:02:25]} Rxb5 {[%emt 0:00:42]} 37. cxb5 {[%emt 0:00:07]} Ke7 {[%emt 0:00:07]} 38. b6 {[%emt 0:00:08]} Kd7 {[%emt 0:00:05]} 39. b7 {[%emt 0:00:02]} Kc7 {[%emt 0:00:04]} 40. b8=Q+ {[%emt 0:00:07]} Kxb8 {[%emt 0:00:04]} 41. Ke2 {[%emt 0:30:03]} Kc7 {[%emt 0:30:09]} 42. Kd3 {[%emt 0:00:03]} Kc6 {[%emt 0:00:12]} 43. Kc4 {[%emt 0:00:06]} Kb7 {[%emt 0:00:10]} 44. Kxb4 {[%emt 0:00:04]} Kb6 {[%emt 0:00:03]} 45. f4 {[%emt 0:01:02]} h5 {[%emt 0:00:11]} 46. h3 {[%emt 0:00:07]} g6 {[%emt 0:00:05]} 47. g4 {[%emt 0:00:08]} hxg4 {[%emt 0:00:06]} 48. hxg4 {[%emt 0:00:04]} g5 {[%emt 0:00:08]} 49. fxg5 {[%emt 0:00:08]} Kc6 {[%emt 0:00:05]} 50. g6 {[%emt 0:00:06]} Kd7 51. g7 Kd6 {[%emt 0:00:42]} 52. g8=Q {[%emt 0:00:40]} Ke5 {[%emt 0:00:05]} 53. g5 {[%emt 0:00:17]} Kd4 {[%emt 0:00:06]} 54. g6 {[%emt 0:00:12]} Ke5 {[%emt 0:00:04]} 55. Qf7 {[%emt 0:00:11]} Kd4 {[%emt 0:00:05]} 56. g7 {[%emt 0:00:09]} Ke4 {[%emt 0:00:03]} 57. g8=R {normal Kd5} 1-0